[Event "*** Titled Tuesday Blitz"]
[Site "Chess.com"]
[Date "2021.03.09"]
[Round "3"]
[White "Aleksey_Sorokin"]
[Black "eduardoperalta"]
[Result "1-0"]
[WhiteElo "2781"]
[BlackElo "2531"]
[TimeControl "180+1"]
[EndTime "10:29:34 PST"]
[Termination "Aleksey_Sorokin won by resignation"]

1. d4 {[%clk 0:02:58.9]} 1... Nf6 {[%clk 0:02:58.2]} 2. c4 {[%clk 0:02:58.9]}
2... c5 {[%clk 0:02:57.2]} 3. d5 {[%clk 0:02:57.9]} 3... d6 {[%clk 0:02:57.4]}
4. Nc3 {[%clk 0:02:55.3]} 4... g6 {[%clk 0:02:57.2]} 5. e4 {[%clk 0:02:54.9]}
5... Bg7 {[%clk 0:02:57.2]} 6. h3 {[%clk 0:02:54.8]} 6... O-O {[%clk 0:02:56]}
7. Bd3 {[%clk 0:02:55.1]} 7... e6 {[%clk 0:02:54.5]} 8. Nf3 {[%clk 0:02:54.7]}
8... exd5 {[%clk 0:02:53.8]} 9. exd5 {[%clk 0:02:52.6]} 9... Re8+ {[%clk
0:02:48.9]} 10. Be3 {[%clk 0:02:52.2]} 10... Nbd7 {[%clk 0:02:44.8]} 11. O-O
{[%clk 0:02:48.4]} 11... a6 {[%clk 0:02:44.3]} 12. Bf4 {[%clk 0:02:40.1]} 12...
Ne5 {[%clk 0:02:37.3]} 13. Nxe5 {[%clk 0:02:34.8]} 13... dxe5 {[%clk 0:02:37]}
14. Bg5 {[%clk 0:02:31.9]} 14... h6 {[%clk 0:02:36.5]} 15. Bxf6 {[%clk
0:02:30.3]} 15... Qxf6 {[%clk 0:02:34.5]} 16. Ne4 {[%clk 0:02:29.3]} 16... Qb6
{[%clk 0:02:31.2]} 17. Qb3 {[%clk 0:02:20.1]} 17... Qc7 {[%clk 0:02:23.1]} 18.
d6 {[%clk 0:01:38.7]} 18... Qc6 {[%clk 0:02:20.3]} 19. Qa3 {[%clk 0:01:39]}
19... b6 {[%clk 0:02:16.6]} 20. Bc2 {[%clk 0:01:39.1]} 20... Rd8 {[%clk
0:02:02.9]} 21. Rfe1 {[%clk 0:01:30.6]} 21... Bb7 {[%clk 0:02:02.2]} 22. Qg3
{[%clk 0:01:26.4]} 22... Kh7 {[%clk 0:01:50.3]} 23. h4 {[%clk 0:01:23.7]} 23...
f5 {[%clk 0:01:16]} 24. h5 {[%clk 0:01:20.6]} 24... Qe8 {[%clk 0:01:15.8]} 25.
d7 {[%clk 0:00:41.1]} 25... Rxd7 {[%clk 0:01:12.8]} 26. Ba4 {[%clk 0:00:38.8]}
26... Bxe4 {[%clk 0:01:07.2]} 27. Qxg6+ {[%clk 0:00:37.4]} 27... Qxg6 {[%clk
0:01:01.3]} 28. hxg6+ {[%clk 0:00:38.3]} 28... Kxg6 {[%clk 0:01:00.8]} 29. Bxd7
{[%clk 0:00:38.9]} 29... Rd8 {[%clk 0:01:00]} 30. Rad1 {[%clk 0:00:38.9]} 30...
Kf6 {[%clk 0:00:49.1]} 31. f3 {[%clk 0:00:32.4]} 31... Bb7 {[%clk 0:00:38.9]}
32. Bxf5 {[%clk 0:00:32.1]} 32... Rxd1 {[%clk 0:00:36.4]} 33. Rxd1 {[%clk
0:00:33]} 33... Bxf3 {[%clk 0:00:28.7]} 34. gxf3 {[%clk 0:00:32]} 34... Kxf5
{[%clk 0:00:28.8]} 35. Rd6 {[%clk 0:00:31.1]} 35... Kf4 {[%clk 0:00:25.3]} 36.
Kf2 {[%clk 0:00:30.3]} 36... e4 {[%clk 0:00:24.2]} 37. fxe4 {[%clk 0:00:22]}
37... Bxb2 {[%clk 0:00:22.8]} 38. Rxb6 {[%clk 0:00:17.7]} 38... Bd4+ {[%clk
0:00:21.7]} 39. Ke2 {[%clk 0:00:17.5]} 39... h5 {[%clk 0:00:21.4]} 40. Rxa6
{[%clk 0:00:17.3]} 40... Kxe4 {[%clk 0:00:21.1]} 41. Rh6 {[%clk 0:00:17.3]}
41... Bg1 {[%clk 0:00:18.3]} 42. a4 {[%clk 0:00:15.9]} 42... Kd4 {[%clk
0:00:17.9]} 43. a5 {[%clk 0:00:16.1]} 43... Bh2 {[%clk 0:00:10.6]} 44. a6 {[%clk
0:00:16.1]} 44... Bb8 {[%clk 0:00:10.4]} 45. Rxh5 {[%clk 0:00:16.2]} 45... Kxc4
{[%clk 0:00:10.1]} 46. Rh8 {[%clk 0:00:16.4]} 46... Ba7 {[%clk 0:00:09.1]} 47.
Rh7 {[%clk 0:00:16.7]} 47... Bb6 {[%clk 0:00:08.1]} 48. Rb7 {[%clk 0:00:16.5]}
48... Kb5 {[%clk 0:00:06.5]} 49. a7 {[%clk 0:00:16.7]} 1-0

[Event "*** Titled Tuesday Blitz"]
[Site "Chess.com"]
[Date "2021.03.09"]
[Round "3"]
[White "SerGo055"]
[Black "Alexsur1981"]
[Result "0-1"]
[WhiteElo "2593"]
[BlackElo "2837"]
[TimeControl "180+1"]
[EndTime "10:29:35 PST"]
[Termination "Alexsur1981 won on time"]

1. d4 {[%clk 0:03:00.9]} 1... d6 {[%clk 0:02:55.2]} 2. Nf3 {[%clk 0:02:59.8]}
2... Bg4 {[%clk 0:02:54.3]} 3. c4 {[%clk 0:02:59.4]} 3... c6 {[%clk 0:02:53.5]}
4. Nc3 {[%clk 0:02:58]} 4... Nd7 {[%clk 0:02:53]} 5. e3 {[%clk 0:02:35.4]} 5...
Ngf6 {[%clk 0:02:52]} 6. Be2 {[%clk 0:02:35]} 6... e5 {[%clk 0:02:51.7]} 7. O-O
{[%clk 0:02:34.4]} 7... Be7 {[%clk 0:02:50.3]} 8. b3 {[%clk 0:02:33.4]} 8... O-O
{[%clk 0:02:48.5]} 9. Bb2 {[%clk 0:02:33.3]} 9... e4 {[%clk 0:02:48.3]} 10. Nd2
{[%clk 0:02:29.5]} 10... Bxe2 {[%clk 0:02:48.7]} 11. Qxe2 {[%clk 0:02:29.4]}
11... d5 {[%clk 0:02:49.6]} 12. f3 {[%clk 0:02:27.7]} 12... exf3 {[%clk
0:02:49]} 13. Qxf3 {[%clk 0:02:27.5]} 13... Nb6 {[%clk 0:02:38.3]} 14. Rad1
{[%clk 0:02:24.4]} 14... Bb4 {[%clk 0:02:33.8]} 15. e4 {[%clk 0:02:11.6]} 15...
Bxc3 {[%clk 0:02:14.2]} 16. Bxc3 {[%clk 0:02:09.1]} 16... Nxe4 {[%clk
0:02:10.6]} 17. Nxe4 {[%clk 0:02:07.4]} 17... dxe4 {[%clk 0:02:11.5]} 18. Qxe4
{[%clk 0:02:07.1]} 18... Qd7 {[%clk 0:02:07.5]} 19. Rd3 {[%clk 0:01:45.2]} 19...
Rae8 {[%clk 0:02:02.8]} 20. Qh4 {[%clk 0:01:41.8]} 20... f6 {[%clk 0:01:57.2]}
21. Rh3 {[%clk 0:01:35.6]} 21... h6 {[%clk 0:01:55.1]} 22. Rg3 {[%clk
0:01:33.9]} 22... Kh7 {[%clk 0:01:49.8]} 23. Qh5 {[%clk 0:01:23.2]} 23... Qf7
{[%clk 0:01:45.6]} 24. Qa5 {[%clk 0:01:17.6]} 24... Nc8 {[%clk 0:01:39.9]} 25.
Bb4 {[%clk 0:01:16.3]} 25... Rg8 {[%clk 0:01:37.8]} 26. Qf5+ {[%clk 0:01:14.2]}
26... Kh8 {[%clk 0:01:37.8]} 27. h3 {[%clk 0:00:53.6]} 27... Re2 {[%clk
0:01:30.4]} 28. Rf2 {[%clk 0:00:47.5]} 28... Rxf2 {[%clk 0:01:21.2]} 29. Kxf2
{[%clk 0:00:43.3]} 29... Re8 {[%clk 0:01:19.6]} 30. Re3 {[%clk 0:00:42.8]} 30...
Rxe3 {[%clk 0:01:10.6]} 31. Kxe3 {[%clk 0:00:42.5]} 31... Nb6 {[%clk 0:01:11.5]}
32. a4 {[%clk 0:00:28.4]} 32... Nd7 {[%clk 0:01:06.5]} 33. Bd6 {[%clk 0:00:24]}
33... g6 {[%clk 0:01:00.7]} 34. Qe4 {[%clk 0:00:22.2]} 34... Kg7 {[%clk
0:00:58.7]} 35. Qe7 {[%clk 0:00:19.6]} 35... Qxe7+ {[%clk 0:00:57.2]} 36. Bxe7
{[%clk 0:00:20.5]} 36... Kf7 {[%clk 0:00:57.5]} 37. Bd6 {[%clk 0:00:20.1]} 37...
Ke6 {[%clk 0:00:57.2]} 38. Bc7 {[%clk 0:00:19.9]} 38... f5 {[%clk 0:00:50.3]}
39. b4 {[%clk 0:00:16.6]} 39... a6 {[%clk 0:00:46.8]} 40. g3 {[%clk 0:00:13.6]}
40... g5 {[%clk 0:00:44.8]} 41. Bd8 {[%clk 0:00:10.6]} 41... Nf8 {[%clk
0:00:29.7]} 42. h4 {[%clk 0:00:07.9]} 42... gxh4 {[%clk 0:00:29.6]} 43. Bxh4
{[%clk 0:00:04.8]} 43... Ng6 {[%clk 0:00:28.3]} 44. Bd8 {[%clk 0:00:04.5]} 44...
h5 {[%clk 0:00:27.8]} 45. Bg5 {[%clk 0:00:02.4]} 45... Kd6 {[%clk 0:00:23.3]}
46. Kf3 {[%clk 0:00:01.9]} 46... b5 {[%clk 0:00:20.3]} 0-1

[Event "*** Titled Tuesday Blitz"]
[Site "Chess.com"]
[Date "2021.03.09"]
[Round "3"]
[White "CroissantNeuf"]
[Black "elextranjero00"]
[Result "1/2-1/2"]
[WhiteElo "2507"]
[BlackElo "2651"]
[TimeControl "180+1"]
[EndTime "10:29:36 PST"]
[Termination "Game drawn by repetition"]

1. e4 {[%clk 0:03:00.9]} 1... c6 {[%clk 0:02:58.7]} 2. d4 {[%clk 0:03:00.4]}
2... d5 {[%clk 0:02:58.8]} 3. e5 {[%clk 0:03:01]} 3... Bf5 {[%clk 0:02:57.5]} 4.
h4 {[%clk 0:03:01.6]} 4... h5 {[%clk 0:02:57.2]} 5. Bd3 {[%clk 0:03:02.1]} 5...
Bxd3 {[%clk 0:02:57.3]} 6. Qxd3 {[%clk 0:03:03]} 6... Qa5+ {[%clk 0:02:57.5]} 7.
Nd2 {[%clk 0:03:01.8]} 7... e6 {[%clk 0:02:47.5]} 8. Nf3 {[%clk 0:02:45.6]} 8...
Qa6 {[%clk 0:02:46.7]} 9. c4 {[%clk 0:02:44.6]} 9... Nd7 {[%clk 0:02:36.8]} 10.
O-O {[%clk 0:02:43.1]} 10... Nh6 {[%clk 0:02:35.4]} 11. b3 {[%clk 0:02:41.9]}
11... Nf5 {[%clk 0:02:35.1]} 12. a4 {[%clk 0:02:39.6]} 12... Be7 {[%clk
0:02:28.4]} 13. Ba3 {[%clk 0:02:34.9]} 13... Nxh4 {[%clk 0:01:54.7]} 14. Nxh4
{[%clk 0:02:17.7]} 14... Bxh4 {[%clk 0:01:54.3]} 15. Bd6 {[%clk 0:02:10.1]}
15... Be7 {[%clk 0:01:47.5]} 16. Bxe7 {[%clk 0:02:05.4]} 16... Kxe7 {[%clk
0:01:47.2]} 17. b4 {[%clk 0:02:06]} 17... Qb6 {[%clk 0:01:21.5]} 18. b5 {[%clk
0:01:57.7]} 18... g6 {[%clk 0:00:54.6]} 19. a5 {[%clk 0:01:53.9]} 19... Qc7
{[%clk 0:00:52.8]} 20. Qa3+ {[%clk 0:01:42.4]} 20... Ke8 {[%clk 0:00:48.1]} 21.
a6 {[%clk 0:01:37]} 21... cxb5 {[%clk 0:00:40.2]} 22. cxd5 {[%clk 0:01:18.3]}
22... exd5 {[%clk 0:00:39.4]} 23. Rac1 {[%clk 0:01:10.1]} 23... Qb6 {[%clk
0:00:37.6]} 24. axb7 {[%clk 0:01:04.3]} 24... Qxb7 {[%clk 0:00:37.6]} 25. Qd6
{[%clk 0:01:02.7]} 25... Qb6 {[%clk 0:00:30.6]} 26. Rc6 {[%clk 0:00:52.7]} 26...
Qb8 {[%clk 0:00:17.8]} 27. Rc7 {[%clk 0:00:49.6]} 27... Qd8 {[%clk 0:00:15.1]}
28. e6 {[%clk 0:00:14.3]} 28... fxe6 {[%clk 0:00:13.5]} 29. Re1 {[%clk
0:00:14.8]} 29... Rh7 {[%clk 0:00:06.8]} 30. Qxe6+ {[%clk 0:00:12.8]} 30... Re7
{[%clk 0:00:07]} 31. Qxg6+ {[%clk 0:00:11.7]} 31... Kf8 {[%clk 0:00:06.8]} 32.
Qh6+ {[%clk 0:00:10.9]} 32... Rg7 {[%clk 0:00:05.7]} 33. Re6 {[%clk 0:00:07.5]}
33... Qxc7 {[%clk 0:00:03.7]} 34. Qh8+ {[%clk 0:00:05.6]} 34... Rg8 {[%clk
0:00:03.8]} 35. Qh6+ {[%clk 0:00:05.1]} 35... Kf7 {[%clk 0:00:04]} 36. Rd6
{[%clk 0:00:02.8]} 36... Rae8 {[%clk 0:00:02.7]} 37. Qh7+ {[%clk 0:00:02.2]}
37... Rg7 {[%clk 0:00:02.8]} 38. Qxh5+ {[%clk 0:00:01.9]} 38... Kf8 {[%clk
0:00:03.3]} 39. Qh8+ {[%clk 0:00:02.1]} 39... Rg8 {[%clk 0:00:03.7]} 40. Qh6+
{[%clk 0:00:01.9]} 40... Rg7 {[%clk 0:00:04.2]} 41. Qh8+ {[%clk 0:00:02.2]}
41... Kf7 {[%clk 0:00:04.5]} 42. Qh5+ {[%clk 0:00:02.1]} 42... Kf8 {[%clk
0:00:04.8]} 43. Qh8+ {[%clk 0:00:02.2]} 1/2-1/2

[Event "*** Titled Tuesday Blitz"]
[Site "Chess.com"]
[Date "2021.03.09"]
[Round "3"]
[White "Zmof"]
[Black "FMLorneTwitch"]
[Result "0-1"]
[WhiteElo "2145"]
[BlackElo "2346"]
[TimeControl "180+1"]
[EndTime "10:29:37 PST"]
[Termination "FMLorneTwitch won on time"]

1. e4 {[%clk 0:03:00.9]} 1... c6 {[%clk 0:02:56.2]} 2. d4 {[%clk 0:03:00.3]}
2... d5 {[%clk 0:02:57.1]} 3. Nc3 {[%clk 0:03:00.5]} 3... dxe4 {[%clk
0:02:56.1]} 4. Nxe4 {[%clk 0:03:01.1]} 4... Bf5 {[%clk 0:02:55.9]} 5. Ng3 {[%clk
0:03:01]} 5... Bg6 {[%clk 0:02:56.4]} 6. h4 {[%clk 0:03:00]} 6... h6 {[%clk
0:02:56.1]} 7. Nf3 {[%clk 0:03:00.6]} 7... Nd7 {[%clk 0:02:56.1]} 8. h5 {[%clk
0:02:59.8]} 8... Bh7 {[%clk 0:02:56.5]} 9. Bd3 {[%clk 0:03:00.5]} 9... Bxd3
{[%clk 0:02:57]} 10. Qxd3 {[%clk 0:03:01.3]} 10... Ngf6 {[%clk 0:02:55.4]} 11.
Bf4 {[%clk 0:02:48.8]} 11... Qa5+ {[%clk 0:02:53.8]} 12. Bd2 {[%clk 0:02:48.3]}
12... Qc7 {[%clk 0:02:53.2]} 13. O-O-O {[%clk 0:02:48.8]} 13... e6 {[%clk
0:02:53.5]} 14. Ne4 {[%clk 0:02:45.8]} 14... Nxe4 {[%clk 0:02:53.3]} 15. Qxe4
{[%clk 0:02:45.3]} 15... Nf6 {[%clk 0:02:53.6]} 16. Qe2 {[%clk 0:02:45.5]} 16...
Bd6 {[%clk 0:02:52.9]} 17. g3 {[%clk 0:02:45.2]} 17... O-O-O {[%clk 0:02:51.3]}
18. c4 {[%clk 0:02:43.7]} 18... c5 {[%clk 0:02:50.8]} 19. Bc3 {[%clk 0:02:42.5]}
19... Rhe8 {[%clk 0:02:35.6]} 20. Kb1 {[%clk 0:02:41.2]} 20... Kb8 {[%clk
0:02:34.6]} 21. Rc1 {[%clk 0:02:37]} 21... a6 {[%clk 0:02:32.8]} 22. Rh4 {[%clk
0:02:26.2]} 22... cxd4 {[%clk 0:02:21.5]} 23. Nxd4 {[%clk 0:02:25]} 23... Be7
{[%clk 0:02:03.2]} 24. a3 {[%clk 0:02:18.6]} 24... Nd7 {[%clk 0:01:31.5]} 25.
Nb3 {[%clk 0:02:05.2]} 25... Bxh4 {[%clk 0:01:28.5]} 26. gxh4 {[%clk 0:02:03.5]}
26... e5 {[%clk 0:01:24.9]} 27. Qg4 {[%clk 0:01:52.9]} 27... Nc5 {[%clk
0:01:18.8]} 28. Ba5 {[%clk 0:01:40.3]} 28... b6 {[%clk 0:01:15]} 29. Nxc5 {[%clk
0:01:40]} 29... Qxc5 {[%clk 0:01:13]} 30. Bb4 {[%clk 0:01:36.5]} 30... Qxf2
{[%clk 0:01:06.8]} 31. Qxg7 {[%clk 0:01:35.3]} 31... Qf5+ {[%clk 0:01:02.7]} 32.
Ka2 {[%clk 0:01:31.1]} 32... Qxh5 {[%clk 0:01:03.1]} 33. Qf6 {[%clk 0:01:25.9]}
33... Qg6 {[%clk 0:00:58.3]} 34. Qf2 {[%clk 0:01:05.8]} 34... Qe6 {[%clk
0:00:54.7]} 35. Ka1 {[%clk 0:00:58]} 35... Rc8 {[%clk 0:00:50.2]} 36. c5 {[%clk
0:00:52.3]} 36... f5 {[%clk 0:00:47]} 37. Bd2 {[%clk 0:00:30.9]} 37... Kb7
{[%clk 0:00:38.8]} 38. Qg2+ {[%clk 0:00:24.3]} 38... e4 {[%clk 0:00:36.6]} 39.
cxb6 {[%clk 0:00:18.1]} 39... Rxc1+ {[%clk 0:00:35.1]} 40. Bxc1 {[%clk
0:00:18.5]} 40... Qxb6 {[%clk 0:00:22.3]} 41. Qg7+ {[%clk 0:00:16.5]} 41... Ka8
{[%clk 0:00:21.1]} 42. Bf4 {[%clk 0:00:11.2]} 42... e3 {[%clk 0:00:19.6]} 43.
Qg2+ {[%clk 0:00:08.9]} 43... Qb7 {[%clk 0:00:18.8]} 44. Qe2 {[%clk 0:00:07.4]}
44... Ka7 {[%clk 0:00:16.1]} 45. Bxh6 {[%clk 0:00:06.7]} 45... Qe4 {[%clk
0:00:15]} 46. Qh5 {[%clk 0:00:02.2]} 46... e2 {[%clk 0:00:14.1]} 0-1

[Event "*** Titled Tuesday Blitz"]
[Site "Chess.com"]
[Date "2021.03.09"]
[Round "3"]
[White "FlySooHigh"]
[Black "Zmeeed63"]
[Result "0-1"]
[WhiteElo "2678"]
[BlackElo "2456"]
[TimeControl "180+1"]
[EndTime "10:29:40 PST"]
[Termination "Zmeeed63 won on time"]

1. e4 {[%clk 0:03:00.9]} 1... Nc6 {[%clk 0:02:58.5]} 2. Nf3 {[%clk 0:02:57.5]}
2... d6 {[%clk 0:02:55.2]} 3. d4 {[%clk 0:02:57]} 3... Nf6 {[%clk 0:02:52.8]} 4.
Nc3 {[%clk 0:02:56.5]} 4... Bg4 {[%clk 0:02:50]} 5. Be3 {[%clk 0:02:56.4]} 5...
g6 {[%clk 0:02:49.3]} 6. h3 {[%clk 0:02:44.2]} 6... Bxf3 {[%clk 0:02:48.4]} 7.
Qxf3 {[%clk 0:02:41.3]} 7... Bg7 {[%clk 0:02:49.3]} 8. d5 {[%clk 0:02:40.6]}
8... Ne5 {[%clk 0:02:48.3]} 9. Qe2 {[%clk 0:02:39.7]} 9... O-O {[%clk
0:02:47.2]} 10. f4 {[%clk 0:02:36.1]} 10... Ned7 {[%clk 0:02:46.6]} 11. g4
{[%clk 0:02:36.5]} 11... c6 {[%clk 0:02:44.9]} 12. Bg2 {[%clk 0:02:07.7]} 12...
cxd5 {[%clk 0:02:40.8]} 13. exd5 {[%clk 0:02:08.6]} 13... Rc8 {[%clk 0:02:18.9]}
14. O-O {[%clk 0:02:07.9]} 14... Nb6 {[%clk 0:02:13.8]} 15. Bd4 {[%clk
0:01:54.9]} 15... Qd7 {[%clk 0:01:41.2]} 16. Qd3 {[%clk 0:01:44.9]} 16... Rc4
{[%clk 0:01:30.5]} 17. Bxb6 {[%clk 0:01:40.9]} 17... Rxc3 {[%clk 0:01:30.4]} 18.
bxc3 {[%clk 0:01:33.3]} 18... axb6 {[%clk 0:01:30.5]} 19. Rab1 {[%clk
0:01:31.6]} 19... Qc7 {[%clk 0:01:18.5]} 20. Rfe1 {[%clk 0:01:25.6]} 20... Re8
{[%clk 0:01:14.7]} 21. Qe3 {[%clk 0:01:16.6]} 21... Nd7 {[%clk 0:01:13.9]} 22.
Rb3 {[%clk 0:00:59.9]} 22... Nc5 {[%clk 0:01:12.5]} 23. Rb4 {[%clk 0:00:54.4]}
23... Kf8 {[%clk 0:01:10.3]} 24. a4 {[%clk 0:00:51.7]} 24... Ra8 {[%clk
0:01:08.1]} 25. Reb1 {[%clk 0:00:42.5]} 25... Rxa4 {[%clk 0:00:52.5]} 26. Rxb6
{[%clk 0:00:37]} 26... Ra3 {[%clk 0:00:47.6]} 27. R6b4 {[%clk 0:00:21.8]} 27...
Rxc3 {[%clk 0:00:42.9]} 28. Qe2 {[%clk 0:00:21.9]} 28... Bf6 {[%clk 0:00:29.2]}
29. Kh1 {[%clk 0:00:21.7]} 29... h6 {[%clk 0:00:27.1]} 30. Qd2 {[%clk
0:00:16.8]} 30... Qa5 {[%clk 0:00:25.6]} 31. Qe2 {[%clk 0:00:14.4]} 31... Qa3
{[%clk 0:00:23.5]} 32. Kh2 {[%clk 0:00:11.9]} 32... Qa2 {[%clk 0:00:19.6]} 33.
R4b2 {[%clk 0:00:10.7]} 33... Qa3 {[%clk 0:00:19.4]} 34. Rb4 {[%clk 0:00:08.8]}
34... Qa2 {[%clk 0:00:19]} 35. R4b2 {[%clk 0:00:08.3]} 35... Rxh3+ {[%clk
0:00:17.4]} 36. Kxh3 {[%clk 0:00:06.3]} 36... Bxb2 {[%clk 0:00:18.3]} 37. Re1
{[%clk 0:00:04.7]} 37... Qa3+ {[%clk 0:00:18.2]} 38. Kh2 {[%clk 0:00:04.6]}
38... Bf6 {[%clk 0:00:17.5]} 39. Qe3 {[%clk 0:00:05]} 39... Qb2 {[%clk
0:00:16.9]} 40. c4 {[%clk 0:00:03.4]} 40... Qb4 {[%clk 0:00:11.4]} 41. Qe2
{[%clk 0:00:02.7]} 41... Qc3 {[%clk 0:00:11]} 42. Rf1 {[%clk 0:00:02.3]} 42...
Qd4 {[%clk 0:00:11]} 0-1

[Event "*** Titled Tuesday Blitz"]
[Site "Chess.com"]
[Date "2021.03.09"]
[Round "3"]
[White "A-S-00"]
[Black "Skat2704"]
[Result "1/2-1/2"]
[WhiteElo "2397"]
[BlackElo "2574"]
[TimeControl "180+1"]
[EndTime "10:29:41 PST"]
[Termination "Game drawn - insufficient material"]

1. d4 {[%clk 0:03:00.9]} 1... d5 {[%clk 0:03:00.3]} 2. Nf3 {[%clk 0:02:59.7]}
2... Nf6 {[%clk 0:02:59.6]} 3. c4 {[%clk 0:03:00.2]} 3... c6 {[%clk 0:02:59.9]}
4. Nc3 {[%clk 0:03:00]} 4... a6 {[%clk 0:03:00.1]} 5. cxd5 {[%clk 0:02:58.1]}
5... cxd5 {[%clk 0:03:00.2]} 6. Bf4 {[%clk 0:02:58.1]} 6... Nc6 {[%clk 0:03:00]}
7. e3 {[%clk 0:02:58]} 7... Bg4 {[%clk 0:03:00.1]} 8. Be2 {[%clk 0:02:50.5]}
8... e6 {[%clk 0:03:00.4]} 9. O-O {[%clk 0:02:46.5]} 9... Bd6 {[%clk 0:02:58.7]}
10. Bg5 {[%clk 0:02:43.9]} 10... h6 {[%clk 0:02:57.6]} 11. Bh4 {[%clk
0:02:42.7]} 11... O-O {[%clk 0:02:57.5]} 12. a3 {[%clk 0:02:36]} 12... Rc8
{[%clk 0:02:55.8]} 13. Rc1 {[%clk 0:02:35.3]} 13... b5 {[%clk 0:02:50.8]} 14. b4
{[%clk 0:02:26.3]} 14... Be7 {[%clk 0:02:50.6]} 15. h3 {[%clk 0:02:03.9]} 15...
Bh5 {[%clk 0:02:48.2]} 16. Bg3 {[%clk 0:01:58]} 16... Bd6 {[%clk 0:02:35.5]} 17.
Bh4 {[%clk 0:01:30]} 17... Be7 {[%clk 0:02:31.9]} 18. Ne5 {[%clk 0:01:14.9]}
18... Bxe2 {[%clk 0:02:27.4]} 19. Nxe2 {[%clk 0:01:09.5]} 19... Nxe5 {[%clk
0:02:23.7]} 20. dxe5 {[%clk 0:01:10.4]} 20... Rxc1 {[%clk 0:02:21]} 21. Qxc1
{[%clk 0:00:57.6]} 21... Ne4 {[%clk 0:02:09.3]} 22. Bxe7 {[%clk 0:00:54.8]}
22... Qxe7 {[%clk 0:02:09.4]} 23. Qc6 {[%clk 0:00:51.4]} 23... Qa7 {[%clk
0:01:59.9]} 24. Rc1 {[%clk 0:00:49.9]} 24... Nd2 {[%clk 0:01:57.1]} 25. Nd4
{[%clk 0:00:30.4]} 25... Nc4 {[%clk 0:01:55.5]} 26. Nb3 {[%clk 0:00:27.5]} 26...
Nxe5 {[%clk 0:01:50]} 27. Qc7 {[%clk 0:00:25.1]} 27... Qxc7 {[%clk 0:01:46.6]}
28. Rxc7 {[%clk 0:00:26]} 28... Nc4 {[%clk 0:01:45.9]} 29. Nc5 {[%clk
0:00:23.2]} 29... Nxa3 {[%clk 0:01:39.4]} 30. Nxa6 {[%clk 0:00:23.3]} 30... Ra8
{[%clk 0:01:34.9]} 31. Rc6 {[%clk 0:00:21.6]} 31... Nc4 {[%clk 0:01:32.3]} 32.
Nc7 {[%clk 0:00:20.4]} 32... Ra1+ {[%clk 0:01:32]} 33. Kh2 {[%clk 0:00:20.6]}
33... Rb1 {[%clk 0:01:31.6]} 34. Nxb5 {[%clk 0:00:19.1]} 34... Rxb4 {[%clk
0:01:31.6]} 35. Nd4 {[%clk 0:00:19]} 35... Rb2 {[%clk 0:01:30.6]} 36. Rc8+
{[%clk 0:00:19]} 36... Kh7 {[%clk 0:01:30.2]} 37. Kg3 {[%clk 0:00:17.7]} 37...
Nd2 {[%clk 0:01:26.9]} 38. f3 {[%clk 0:00:15.8]} 38... Nf1+ {[%clk 0:01:24.8]}
39. Kf4 {[%clk 0:00:16.1]} 39... Rxg2 {[%clk 0:01:21]} 40. Rc7 {[%clk
0:00:12.6]} 40... Kg6 {[%clk 0:01:18]} 41. Nc6 {[%clk 0:00:11.9]} 41... Ng3
{[%clk 0:01:12.4]} 42. Ne5+ {[%clk 0:00:10.9]} 42... Kh7 {[%clk 0:01:11]} 43.
Nxf7 {[%clk 0:00:10.8]} 43... Kg8 {[%clk 0:00:59]} 44. Nd8 {[%clk 0:00:10.1]}
44... Ne2+ {[%clk 0:00:50.6]} 45. Ke5 {[%clk 0:00:10.3]} 45... Ng1 {[%clk
0:00:47.8]} 46. Nxe6 {[%clk 0:00:08.7]} 46... Nxf3+ {[%clk 0:00:48]} 47. Kxd5
{[%clk 0:00:08.1]} 47... Rd2+ {[%clk 0:00:47.5]} 48. Ke4 {[%clk 0:00:07.8]}
48... Ng5+ {[%clk 0:00:46.9]} 49. Nxg5 {[%clk 0:00:07.4]} 49... hxg5 {[%clk
0:00:47.8]} 50. Rc5 {[%clk 0:00:08.3]} 50... Rh2 {[%clk 0:00:47.1]} 51. Rxg5
{[%clk 0:00:07.9]} 51... Rxh3 {[%clk 0:00:47.4]} 52. Kf4 {[%clk 0:00:08.4]}
52... Rh4+ {[%clk 0:00:47.1]} 53. Rg4 {[%clk 0:00:08.6]} 53... Rxg4+ {[%clk
0:00:47.2]} 54. Kxg4 {[%clk 0:00:08.9]} 54... Kf7 {[%clk 0:00:47.9]} 55. Kf5
{[%clk 0:00:09.2]} 55... g6+ {[%clk 0:00:45.9]} 56. Kg5 {[%clk 0:00:09.6]} 56...
Kg7 {[%clk 0:00:46.2]} 57. e4 {[%clk 0:00:10.2]} 57... Kf7 {[%clk 0:00:46.5]}
58. e5 {[%clk 0:00:10.8]} 58... Ke6 {[%clk 0:00:46.5]} 59. Kxg6 {[%clk 0:00:11]}
59... Kxe5 {[%clk 0:00:47]} 1/2-1/2